fUSD/lending_fUSD_20241210
["ID","MTS","AMOUNT","RATE_DAILY","PERIOD"]
[344875905,1733847078318,-1349.29,0.00010958,2]
[344875907,1733847078328,-503.21093045,0.00010958,2]
[344875909,1733847078338,-711.22,0.00010958,2]
[344875912,1733847078348,-500.0,0.00010958,2]
[344875914,1733847078358,-844.12,0.00010958,2]
[344875915,1733847078367,-1349.29,0.00010958,2]
[344875917,1733847078377,-844.12,0.00010958,2]
[344875919,1733847078386,-500.0,0.00010958,2]
[344875921,1733847078395,-711.22,0.00010958,2]
[344875923,1733847078404,-1349.29,0.00010958,2]
[344875925,1733847078414,-844.12,0.00010958,2]
[344875928,1733847078423,-711.22,0.00010958,2]
[344875929,1733847078433,-500.0,0.00010958,2]
[344875931,1733847078442,-1349.29,0.00010958,2]
[344875932,1733847078451,-844.12,0.00010958,2]
[344875933,1733847078460,-500.0,0.00010958,2]
[344875935,1733847078470,-711.22,0.00010958,2]
[344875937,1733847078479,-500.0,0.00010958,2]
[344875938,1733847078496,-1349.29,0.00010958,2]
[344875940,1733847078506,-844.12,0.00010958,2]
[344875941,1733847078516,-711.35475713,0.00010958,2]
[344875942,1733847078526,-628.51540533,0.00010958,2]
[344875943,1733847078536,-1349.29,0.00010958,2]
[344875944,1733847078547,-844.12,0.00010958,2]
[344875945,1733847078556,-500.0,0.00010958,2]
[344875946,1733847078566,-844.12,0.00010958,2]
[344875947,1733847078576,-1349.29,0.00010958,2]
[344875948,1733847078586,-500.0,0.00010958,2]
[344875949,1733847078597,-500.0,0.00010958,2]
[344875950,1733847078607,-844.12,0.00010958,2]
[344875951,1733847078617,-1349.3780241,0.00010958,2]
[344875952,1733847078627,-500.0,0.00010958,2]
[344875953,1733847078637,-500.0,0.00010958,2]
[344875954,1733847078647,-501.53358901,0.00010958,2]
[344875955,1733847078657,-844.12,0.00010958,2]
[344875956,1733847078666,-500.0,0.00010958,2]
[344875957,1733847078676,-844.12,0.00010958,2]
[344875958,1733847078687,-500.0,0.00010958,2]
[344875959,1733847078698,-500.0,0.00010958,2]
[344875960,1733847078708,-844.12,0.00010958,2]
[344875961,1733847078718,-500.0,0.00010958,2]
[344875962,1733847078728,-844.12,0.00010958,2]
[344875963,1733847078746,-500.0,0.00010958,2]
[344875964,1733847078757,-500.0,0.00010958,2]
[344875965,1733847078768,-226.33112779,0.00010958,2]
[344875967,1733847078778,-401.37578966,0.00010958,2]
[344875968,1733847078788,-844.12,0.00010958,2]
[344875970,1733847078797,-500.0,0.00010958,2]
[344875972,1733847078806,-243.097287,0.00010958,2]
[344875973,1733847078816,-500.0,0.00010958,2]
[344875975,1733847078826,-500.0,0.00010958,2]
[344875977,1733847078835,-844.12,0.00010958,2]
[344875979,1733847078844,-1199.95,0.00010958,2]
[344875981,1733847078854,-500.0,0.00010958,2]
[344875983,1733847078864,-694.71,0.00010958,2]
[344875985,1733847078873,-500.0,0.00010958,2]
[344875987,1733847078883,-1199.95,0.00010958,2]
[344875989,1733847078892,-500.0,0.00010958,2]
[344875991,1733847078902,-500.67931672,0.00010958,2]
[344875993,1733847078912,-694.71,0.00010958,2]
[344875995,1733847078922,-500.0,0.00010958,2]
[344875997,1733847078931,-1199.95,0.00010958,2]
[344875998,1733847078941,-22.27224415,0.00010958,2]
[344876044,1733847079632,-477.72775585,0.00010958,2]
[344876045,1733847079642,-694.71,0.00010958,2]
[344876046,1733847079652,-268.44224415,0.00010958,2]
[344876047,1733847079668,-231.55775585,0.00010958,2]
[344876048,1733847079679,-500.0,0.00010958,2]
[344876049,1733847079688,-694.71,0.00010958,2]
[344876050,1733847079699,-139.32508851,0.00010958,2]
[344876051,1733847079721,-360.67491149,0.00010958,2]
[344876052,1733847079734,-500.0,0.00010958,2]
[344876053,1733847079745,-694.71,0.00010958,2]
[344876054,1733847079755,-500.0,0.00010958,2]
[344876055,1733847079766,-90.63555051,0.00010958,2]
[344876060,1733847453053,1183.66,8.219e-05,2]
[344876061,1733847536847,1005.63207415,9.336e-05,2]
[344876068,1733847941999,497.69158276,1.08e-05,2]
[344876069,1733847952180,250.0,9.457e-05,2]
[344876071,1733848086910,-946.32,9.556e-05,2]
[344876072,1733848086935,-200.0,9.599e-05,2]
[344876073,1733848086956,-286.58846984,9.599e-05,2]
[344876074,1733848087191,-300.0,9.603e-05,2]
[344876075,1733848087213,-23900.0,9.604e-05,2]
[344876076,1733848087235,-365.86,9.646e-05,2]
[344876077,1733848087264,-250.0,9.679e-05,2]
[344876078,1733848087286,-1500.0,9.758e-05,2]
[344876079,1733848087307,-1000.0,9.793e-05,2]
[344876080,1733848087328,-12412.5,9.794e-05,2]
[344876081,1733848100601,-150.0,9.885e-05,2]
[344876082,1733848100621,-2543.7327,9.886e-05,2]
[344876083,1733848100642,-4106.6243,9.886e-05,2]
[344876084,1733848100662,-999.99,9.886e-05,2]
[344876085,1733848100682,-981.70801528,9.886e-05,2]
[344876087,1733848122817,3000.0,0.000155,60]
[344876100,1733848135667,671.76,0.000155,60]
[344876121,1733848232212,-381.9816,9.863e-05,2]
[344876122,1733848232279,-344.36340346,9.863e-05,2]
[344876123,1733848232317,-308.61499654,9.863e-05,2]
[344876124,1733848232327,-300.0,9.885e-05,2]
[344876125,1733848232337,-300.0,9.885e-05,2]
[344876126,1733848232346,-105.42798232,9.886e-05,2]
[344876127,1733848232358,-421.3108706,9.886e-05,2]
[344876129,1733848232471,-1098.5,9.886e-05,2]
[344876130,1733848232482,-1060.1531318,9.886e-05,2]
[344876131,1733848232492,-412.5468682,9.886e-05,2]
[344876132,1733848232506,-695.16061057,9.886e-05,2]
[344876142,1733848238261,-1000.0,9.574e-05,2]
[344876143,1733848238270,-4035.60252123,9.886e-05,2]
[344876144,1733848238279,-150.0,9.949e-05,2]
[344876145,1733848238289,-10461.31644547,9.95e-05,2]
[344876146,1733848238318,-1170.29010182,9.95e-05,2]
[344876147,1733848238329,-1407.84951774,9.95e-05,2]
[344876148,1733848238431,-52563.91023632,9.95e-05,2]
[344876149,1733848238440,-205.0,9.985e-05,2]
[344876150,1733848238453,-204.0,9.985e-05,2]
[344876151,1733848238463,-150.0,9.986e-05,2]
[344876152,1733848238472,-200.0,0.0001,3]
[344876153,1733848238481,-268.72,0.00010018,2]
[344876154,1733848238491,-151.4,0.00010024,2]
[344876155,1733848238500,-1567.22,0.00010056,2]
[344876156,1733848238510,-500.0,0.000101,3]
[344876157,1733848238519,-169.81,0.00010146,2]
[344876158,1733848238529,-800.0,0.000102,3]
[344876159,1733848238538,-1034.96,0.00010228,2]
[344876160,1733848238548,-435.83,0.00010241,2]
[344876161,1733848238557,-435.83,0.00010241,2]
[344876162,1733848238566,-435.83,0.00010241,2]
[344876163,1733848238575,-435.83,0.00010241,2]
[344876164,1733848238585,-435.83,0.00010241,2]
[344876165,1733848238594,-314.76,0.00010274,2]
[344876166,1733848238603,-490.3927121,0.000103,3]
[344876167,1733848238627,-609.6072879,0.000103,3]
[344876168,1733848238636,-639.17,0.00010378,2]
[344876169,1733848238645,-1300.0,0.000104,3]
[344876170,1733848238654,-4980.1377376,0.000104,2]
[344876171,1733848238687,-20345.69445,0.000104,2]
[344876172,1733848238702,-3591.0,0.000104,2]
[344876173,1733848238715,-7940.5875124,0.000104,2]
[344876174,1733848238724,-200.0,0.00010403,2]
[344876175,1733848238733,-488.972,0.0001041,2]
[344876177,1733848238742,-435.83,0.00010441,2]
[344876178,1733848238751,-768.65,0.00010441,2]
[344876179,1733848238761,-435.83,0.00010441,2]
[344876180,1733848238771,-768.65,0.00010441,2]
[344876181,1733848238781,-435.83,0.00010441,2]
[344876182,1733848238792,-768.65,0.00010441,2]
[344876184,1733848238802,-435.83,0.00010441,2]
[344876186,1733848238812,-768.65,0.00010441,2]
[344876188,1733848238823,-768.65,0.00010441,2]
[344876189,1733848238832,-1241.92,0.00010441,2]
[344876190,1733848238844,-1183.66,0.00010458,2]
[344876191,1733848238853,-2524.4778876,0.000105,3]
[344876192,1733848238894,-9659.99973,0.000105,3]
[344876208,1733848240814,-287.97007784,0.000105,3]
[344876209,1733848240827,-686.24633394,0.000105,3]
[344876210,1733848240842,-328.56275585,0.000105,3]
[344876211,1733848240853,-517.44204195,0.000105,3]
[344876212,1733848241031,-980.44946021,0.000105,3]
[344876213,1733848241042,-8418.07795771,0.000105,3]
[344876214,1733848241052,-200.0,0.000105,3]
[344876215,1733848241062,-153.0,0.00010538,2]
[344876216,1733848241071,-153.0,0.00010538,2]
[344876217,1733848241080,-153.0,0.00010538,2]
[344876218,1733848241090,-153.0,0.00010538,2]
[344876219,1733848241102,-153.0,0.00010538,2]
[344876220,1733848241111,-153.0,0.00010538,2]
[344876221,1733848241121,-153.0,0.00010538,2]
[344876222,1733848241131,-150.0,0.00010578,2]
[344876223,1733848241140,-81.42204229,0.00010578,2]
[344876224,1733848241211,-69.97795771,0.00010578,2]
[344876225,1733848241220,-652.90204235,0.00010593,2]
[344876226,1733848241231,-382.05795765,0.00010593,2]
[344876227,1733848241241,-200.0,0.000106,3]
[344876228,1733848241250,-8164.58670926,0.000107,2]
[344876229,1733848241261,-332.54659203,0.000107,2]
[344876230,1733848241313,-1446.34760954,0.000107,2]
[344876231,1733848241325,-358.4,0.000107,2]
[344876232,1733848241337,-928.71745245,0.000107,2]
[344876233,1733848241346,-200.0,0.000107,3]
[344876234,1733848241356,-946.32,0.0001075,2]
[344876235,1733848241365,-219.45654703,0.00010767,2]
[344876236,1733848241377,-280.54345297,0.00010767,2]
[344876237,1733848241387,-1000.0,0.0001077,2]
[344876238,1733848241396,-1000.0,0.000108,2]
[344876239,1733848241406,-200.0,0.000108,3]
[344876240,1733848241415,-1000.0,0.000108,2]
[344876241,1733848241424,-3000.0,0.0001085,2]
[344876242,1733848241434,-50.10981872,0.00010857,2]
[344876243,1733848241448,-542.80886309,0.00010857,2]
[344876244,1733848241459,-422.25836631,0.00010857,2]
[344876245,1733848241470,-106.61464151,0.00010857,2]
[344876246,1733848241480,-175.19321214,0.00010858,2]
[344876247,1733848241490,-779.18992145,0.00010858,2]
[344876248,1733848241506,-13979.09382021,0.00010858,2]
[344876249,1733848241516,-209.90545001,0.00010858,2]
[344876250,1733848241526,-1929.8073913,0.00010858,2]
[344876251,1733848241535,-3807.19333848,0.00010858,2]
[344876252,1733848241547,-1545.78538998,0.00010858,2]
[344876253,1733848241556,-5000.0,0.00010858,2]
[344876254,1733848241566,-383.9515,0.00010858,2]
[344876255,1733848241576,-420.0,0.00010874,2]
[344876256,1733848241585,-1000.0,0.000109,2]
[344876257,1733848241594,-831.0,0.000109,3]
[344876258,1733848241604,-14758.28374165,0.00010929,2]
[344876259,1733848241613,-1929.80739129,0.00010929,2]
[344876260,1733848241622,-729.0,0.00010932,2]
[344876261,1733848241631,-3517.0,0.00010932,2]
[344876262,1733848241639,-7611.0,0.00010932,2]
[344876263,1733848241649,-38345.81891948,0.00010934,2]
[344876279,1733848243315,-151.22,9.91e-05,2]
[344876281,1733848243324,-590.43,0.00010934,2]
[344876283,1733848243335,-1520.53190387,0.00010934,2]
[344876286,1733848243346,-7101.21971129,0.00010934,2]
[344876288,1733848243357,-1902.27205,0.00010934,2]
[344876291,1733848243376,-954.0,0.00010934,2]
[344876294,1733848243395,-6135.31484099,0.00010934,2]
[344876296,1733848243404,-255.0,0.00010944,2]
[344876297,1733848243413,-2272.17997385,0.00010948,2]
[344876299,1733848243421,-723.50518516,0.00010948,2]
[344876308,1733848243497,-560.49294706,0.00010948,2]
[344876460,1733848246212,-988.18184163,0.00010948,2]
[344876461,1733848246222,-2272.17997385,0.00010948,2]
[344876462,1733848246231,-796.300188,0.00010949,2]
[344876463,1733848246241,-2666.18721447,0.00010949,2]
[344876464,1733848246267,-6.87235213,0.00010949,2]
[344876465,1733848246277,-1020.4037503,0.00010951,2]
[344876466,1733848246286,-3360.6938185,0.00010951,2]
[344876467,1733848246296,-7118.53742832,0.00010957,2]
[344876468,1733848246307,-5006.5021,0.00010957,2]
[344876472,1733848246348,-4061.23656443,0.00010957,2]
[344876510,1733848246702,-153.0,0.00010538,2]
[344876511,1733848246711,-202.64622195,0.00010957,2]
[344876514,1733848246723,-24141.96923545,0.00010957,2]
[344876516,1733848246732,-500.0,0.00010957,2]
[344876518,1733848246742,-808.75153121,0.00010957,2]
[344876520,1733848246751,-1695.0,0.00010958,2]
[344876522,1733848246759,-1034.96,0.00010958,2]
[344876524,1733848246768,-500.0,0.00010958,2]
[344876525,1733848246778,-549.74936101,0.00010958,2]
[344876528,1733848246788,-500.0,0.00010958,2]
[344876530,1733848246797,-622.23,0.00010958,2]
[344876532,1733848246806,-500.0,0.00010958,2]
[344876533,1733848246815,-500.0,0.00010958,2]
[344876535,1733848246824,-500.0,0.00010958,2]
[344876537,1733848246833,-500.0,0.00010958,2]
[344876539,1733848246842,-500.0,0.00010958,2]
[344876541,1733848246851,-500.0,0.00010958,2]
[344876543,1733848246860,-500.0,0.00010958,2]
[344876545,1733848246869,-206.37655707,0.00010958,2]
[344876547,1733848246879,-455.66230213,0.00010958,2]
[344876549,1733848246888,-500.0,0.00010958,2]
[344876551,1733848246897,-500.0,0.00010958,2]
[344876553,1733848246906,-500.0,0.00010958,2]
[344876555,1733848246915,-500.0,0.00010958,2]
[344876557,1733848246924,-500.0,0.00010958,2]
[344876559,1733848246933,-500.0,0.00010958,2]
[344876561,1733848246943,-409.36444949,0.00010958,2]
[344876563,1733848246957,-500.0,0.00010958,2]
[344876565,1733848246969,-500.0,0.00010958,2]
[344876567,1733848246978,-500.0,0.00010958,2]
[344876569,1733848246990,-500.0,0.00010958,2]
[344876571,1733848247002,-500.0,0.00010958,2]
[344876573,1733848247012,-500.0,0.00010958,2]
[344876575,1733848247021,-500.0,0.00010958,2]
[344876577,1733848247031,-500.0,0.00010958,2]
[344876579,1733848247040,-500.0,0.00010958,2]
[344876581,1733848247049,-500.0,0.00010958,2]
[344876583,1733848247058,-516.45674799,0.00010958,2]
[344876585,1733848247070,-262.5690028,0.00010958,2]
[344876587,1733848247081,-500.0,0.00010958,2]
[344876590,1733848247091,-500.0,0.00010958,2]
[344876591,1733848247100,-500.0,0.00010958,2]
[344876594,1733848247111,-500.0,0.00010958,2]
[344876595,1733848247121,-500.0,0.00010958,2]
[344876598,1733848247132,-543.44970032,0.00010958,2]
[344876599,1733848247142,-500.0,0.00010958,2]
[344876602,1733848247152,-500.0,0.00010958,2]
[344876603,1733848247161,-181.47875723,0.00010958,2]
[344876606,1733848247170,-500.0,0.00010958,2]
[344876607,1733848247180,-500.0,0.00010958,2]
[344876610,1733848247189,-253.57,0.00010958,2]
[344876612,1733848247201,-500.0,0.00010958,2]
[344876614,1733848247211,-501.36775633,0.00010958,2]
[344876616,1733848247220,-500.0,0.00010958,2]
[344876618,1733848247229,-500.0,0.00010958,2]
[344876620,1733848247238,-500.0,0.00010958,2]
[344876622,1733848247247,-500.0,0.00010958,2]
[344876624,1733848247256,-500.0,0.00010958,2]
[344876625,1733848247266,-500.0,0.00010958,2]
[344876628,1733848247275,-500.0,0.00010958,2]
[344876630,1733848247286,-500.0,0.00010958,2]
[344876632,1733848247295,-500.0,0.00010958,2]
[344876633,1733848247304,-500.0,0.00010958,2]
[344876635,1733848247314,-414.62296721,0.00010958,2]
[344876637,1733848247323,-500.0,0.00010958,2]
[344876639,1733848247334,-500.0,0.00010958,2]
[344876641,1733848247343,-500.0,0.00010958,2]
[344876644,1733848247353,-500.0,0.00010958,2]
[344876646,1733848247363,-500.0,0.00010958,2]
[344876647,1733848247373,-500.0,0.00010958,2]
[344876650,1733848247383,-500.0,0.00010958,2]
[344876651,1733848247393,-500.0,0.00010958,2]
[344876653,1733848247402,-497.31577954,0.00010958,2]
[344876656,1733848247412,-511.86790321,0.00010958,2]
[344876657,1733848247421,-500.0,0.00010958,2]
[344876660,1733848247431,-500.0,0.00010958,2]
[344876662,1733848247441,-500.0,0.00010958,2]
[344876663,1733848247454,-500.0,0.00010958,2]
[344876666,1733848247464,-500.0,0.00010958,2]
[344876667,1733848247473,-500.0,0.00010958,2]
[344876670,1733848247483,-500.0,0.00010958,2]
[344876671,1733848247493,-500.0,0.00010958,2]
[344876673,1733848247502,-500.0,0.00010958,2]
[344876675,1733848247511,-500.0,0.00010958,2]
[344876677,1733848247520,-500.0,0.00010958,2]
[344876679,1733848247530,-500.0,0.00010958,2]
[344876681,1733848247539,-500.0,0.00010958,2]
[344876683,1733848247548,-503.59191283,0.00010958,2]
[344876685,1733848247558,-500.0,0.00010958,2]
[344876687,1733848247567,-500.0,0.00010958,2]
[344876689,1733848247577,-500.0,0.00010958,2]
[344876691,1733848247586,-500.0,0.00010958,2]
[344876693,1733848247597,-556.67,0.00010958,2]
[344876695,1733848247608,-500.0,0.00010958,2]
[344876697,1733848247618,-500.0,0.00010958,2]
[344876699,1733848247627,-500.0,0.00010958,2]
[344876701,1733848247636,-500.0,0.00010958,2]
[344876703,1733848247645,-500.0,0.00010958,2]
[344876705,1733848247654,-500.0,0.00010958,2]
[344876707,1733848247664,-500.0,0.00010958,2]
[344876709,1733848247673,-500.0,0.00010958,2]
[344876711,1733848247682,-500.0,0.00010958,2]
[344876713,1733848247692,-500.0,0.00010958,2]
[344876715,1733848247705,-166.41,0.00010958,2]
[344876717,1733848247714,-541.73,0.00010958,2]
[344876719,1733848247724,-541.73,0.00010958,2]
[344876721,1733848247733,-541.73,0.00010958,2]
[344876723,1733848247742,-541.73,0.00010958,2]
[344876725,1733848247751,-500.0,0.00010958,2]
[344876727,1733848247761,-541.73,0.00010958,2]
[344876729,1733848247770,-500.0,0.00010958,2]
[344876732,1733848247779,-541.73,0.00010958,2]
[344876734,1733848247789,-500.0,0.00010958,2]
[344876735,1733848247799,-541.73,0.00010958,2]
[344876737,1733848247808,-541.73,0.00010958,2]
[344876739,1733848247818,-541.73,0.00010958,2]
[344876741,1733848247827,-541.73,0.00010958,2]
[344876743,1733848247836,-541.73,0.00010958,2]
[344876746,1733848247846,-541.73,0.00010958,2]
[344876748,1733848247855,-541.73,0.00010958,2]
[344876750,1733848247864,-500.0,0.00010958,2]
[344876752,1733848247873,-541.73,0.00010958,2]
[344876754,1733848247883,-500.0,0.00010958,2]
[344876756,1733848247893,-541.73,0.00010958,2]
[344876757,1733848247903,-262.22138869,0.00010958,2]
[344876759,1733848247912,-541.73,0.00010958,2]
[344876762,1733848247922,-541.73,0.00010958,2]
[344876763,1733848247931,-541.73,0.00010958,2]
[344876765,1733848247940,-541.73,0.00010958,2]
[344876767,1733848247952,-541.73,0.00010958,2]
[344876769,1733848247962,-541.73,0.00010958,2]
[344876771,1733848247971,-541.73,0.00010958,2]
[344876773,1733848247981,-541.73,0.00010958,2]
[344876775,1733848247993,-541.86448093,0.00010958,2]
[344876777,1733848248002,-500.0,0.00010958,2]
[344876779,1733848248011,-500.0,0.00010958,2]
[344876781,1733848248022,-500.0,0.00010958,2]
[344876783,1733848248034,-500.0,0.00010958,2]
[344876785,1733848248044,-500.0,0.00010958,2]
[344876787,1733848248054,-500.0,0.00010958,2]
[344876789,1733848248065,-500.0,0.00010958,2]
[344876791,1733848248074,-500.0,0.00010958,2]
[344876793,1733848248085,-500.0,0.00010958,2]
[344876795,1733848248095,-500.0,0.00010958,2]
[344876797,1733848248104,-500.0,0.00010958,2]
[344876799,1733848248114,-484.28796594,0.00010958,2]
[344876801,1733848248123,-500.0,0.00010958,2]
[344876803,1733848248132,-209.88583768,0.00010958,2]
[344876805,1733848248141,-500.0,0.00010958,2]
[344876807,1733848248150,-311.61,0.00010958,2]
[344876809,1733848248159,-500.0,0.00010958,2]
[344876811,1733848248168,-502.09995345,0.00010958,2]
[344876813,1733848248178,-500.0,0.00010958,2]
[344876815,1733848248187,-500.0,0.00010958,2]
[344876817,1733848248196,-100.14561123,0.00010958,2]
[344876829,1733848248305,-399.85438877,0.00010958,2]
[344876831,1733848248315,-255.71793773,0.00010958,2]
[344876833,1733848248326,-36.83206227,0.00010958,2]
[344876835,1733848248336,-505.25004803,0.00010958,2]
[344876837,1733848248345,-501.59896939,0.00010958,2]
[344876839,1733848248355,-306.07912458,0.00010958,2]
[344876842,1733848248371,-193.92087542,0.00010958,2]
[344876843,1733848248381,-500.0,0.00010958,2]
[344876846,1733848248391,-500.0,0.00010958,2]
[344876848,1733848248400,-500.0,0.00010958,2]
[344876850,1733848248410,-501.65568744,0.00010958,2]
[344876852,1733848248420,-500.0,0.00010958,2]
[344876854,1733848248429,-500.0,0.00010958,2]
[344876856,1733848248439,-500.0,0.00010958,2]
[344876858,1733848248452,-500.0,0.00010958,2]
[344876860,1733848248462,-502.66624717,0.00010958,2]
[344876862,1733848248472,-85.35718997,0.00010958,2]
[344876865,1733848248497,-414.64281003,0.00010958,2]
[344876867,1733848248506,-298.02925557,0.00010958,2]
[344876870,1733848248518,-201.97074443,0.00010958,2]
[344876871,1733848248527,-500.0,0.00010958,2]
[344876873,1733848248537,-91.65394357,0.00010958,2]
[344876876,1733848248550,-444.41605643,0.00010958,2]
[344876878,1733848248560,-500.0,0.00010958,2]
[344876880,1733848248570,-428.80071918,0.00010958,2]
[344876882,1733848248579,-500.0,0.00010958,2]
[344876884,1733848248588,-500.0,0.00010958,2]
[344876886,1733848248598,-500.0,0.00010958,2]
[344876888,1733848248607,-500.0,0.00010958,2]
[344876890,1733848248616,-590.7,0.00010958,2]
[344876892,1733848248625,-73.02047601,0.00010958,2]
[344876894,1733848248642,-426.97952399,0.00010958,2]
[344876896,1733848248651,-500.0,0.00010958,2]
[344876898,1733848248660,-501.67896834,0.00010958,2]
[344876900,1733848248668,-500.0,0.00010958,2]
[344876902,1733848248678,-500.0,0.00010958,2]
[344876904,1733848248687,-500.0,0.00010958,2]
[344876906,1733848248696,-500.0,0.00010958,2]
[344876908,1733848248708,-500.0,0.00010958,2]
[344876910,1733848248717,-476.65099302,0.00010958,2]
[344876912,1733848248726,-500.0,0.00010958,2]
[344876914,1733848248735,-500.0,0.00010958,2]
[344876916,1733848248744,-500.0,0.00010958,2]
[344876918,1733848248754,-495.90343597,0.00010958,2]
[344876920,1733848248763,-500.0,0.00010958,2]
[344876922,1733848248773,-216.27126468,0.00010958,2]
[344876925,1733848248795,-283.72873532,0.00010958,2]
[344876927,1733848248805,-500.0,0.00010958,2]
[344876929,1733848248822,-500.0,0.00010958,2]
[344876931,1733848248832,-441.33029582,0.00010958,2]
[344876933,1733848248842,-500.0,0.00010958,2]
[344876935,1733848248851,-502.22763764,0.00010958,2]
[344876937,1733848248861,-500.0,0.00010958,2]
[344876939,1733848248870,-500.0,0.00010958,2]
[344876941,1733848248880,-500.0,0.00010958,2]
[344876943,1733848248889,-500.0,0.00010958,2]
[344876945,1733848248899,-500.0,0.00010958,2]
[344876947,1733848248909,-500.0,0.00010958,2]
[344876949,1733848248918,-500.0,0.00010958,2]
[344876951,1733848248928,-500.0,0.00010958,2]
[344876953,1733848248938,-500.0,0.00010958,2]
[344876955,1733848248950,-500.0,0.00010958,2]
[344876957,1733848248960,-500.0,0.00010958,2]
[344876959,1733848248970,-500.0,0.00010958,2]
[344876961,1733848248980,-500.0,0.00010958,2]
[344876963,1733848248990,-500.0,0.00010958,2]
[344876964,1733848248999,-239.76449758,0.00010958,2]
[344876966,1733848249009,-500.0,0.00010958,2]
[344876968,1733848249018,-500.0,0.00010958,2]
[344876970,1733848249028,-500.0,0.00010958,2]
[344876972,1733848249037,-500.0,0.00010958,2]
[344876974,1733848249047,-500.0,0.00010958,2]
[344876976,1733848249056,-500.0,0.00010958,2]
[344876978,1733848249067,-500.0,0.00010958,2]
[344876980,1733848249077,-500.0,0.00010958,2]
[344876982,1733848249086,-500.0,0.00010958,2]
[344876984,1733848249096,-500.0,0.00010958,2]
[344876986,1733848249107,-500.0,0.00010958,2]
[344876988,1733848249116,-500.0,0.00010958,2]
[344876990,1733848249126,-500.0,0.00010958,2]
[344876992,1733848249135,-500.0,0.00010958,2]
[344876994,1733848249144,-500.0,0.00010958,2]
[344876996,1733848249154,-500.0,0.00010958,2]
[344876998,1733848249164,-397.33597491,0.00010958,2]
[344877000,1733848249173,-500.0,0.00010958,2]
[344877002,1733848249184,-500.0,0.00010958,2]
[344877004,1733848249194,-500.0,0.00010958,2]
[344877006,1733848249207,-500.0,0.00010958,2]
[344877008,1733848249224,-500.0,0.00010958,2]
[344877010,1733848249233,-500.0,0.00010958,2]
[344877012,1733848249243,-500.0,0.00010958,2]
[344877014,1733848249253,-500.0,0.00010958,2]
[344877016,1733848249262,-466.402724,0.00010958,2]
[344877018,1733848249271,-500.0,0.00010958,2]
[344877020,1733848249281,-500.0,0.00010958,2]
[344877022,1733848249289,-500.0,0.00010958,2]
[344877024,1733848249299,-500.0,0.00010958,2]
[344877026,1733848249311,-389.2047015,0.00010958,2]
[344877028,1733848249321,-500.0,0.00010958,2]
[344877030,1733848249331,-500.0,0.00010958,2]
[344877032,1733848249341,-258.71358767,0.00010958,2]
[344877034,1733848249351,-403.42728156,0.00010958,2]
[344877044,1733848249442,-96.57271844,0.00010958,2]
[344877046,1733848249455,-500.0,0.00010958,2]
[344877048,1733848249465,-500.0,0.00010958,2]
[344877049,1733848249474,-500.0,0.00010958,2]
[344877050,1733848249483,-500.0,0.00010958,2]
[344877051,1733848249492,-500.0,0.00010958,2]
[344877052,1733848249502,-500.0,0.00010958,2]
[344877053,1733848249511,-500.0,0.00010958,2]
[344877054,1733848249520,-500.0,0.00010958,2]
[344877055,1733848249529,-500.0,0.00010958,2]
[344877056,1733848249538,-500.0,0.00010958,2]
[344877057,1733848249548,-500.0,0.00010958,2]